[Event "Late-Titled-Tuesday-Blitz-June-04-2024"]
[Site "Chess.com"]
[Date "2024.06.04"]
[Round "3"]
[White "jefferyx"]
[Black "Sl4werThanYou"]
[Result "1-0"]
[WhiteElo "3090"]
[BlackElo "2752"]
[TimeControl "180+1"]
[EndTime "14:27:49 PDT"]
[Termination "jefferyx won by checkmate"]

1. e4 {[%clk 0:03:00.9]} 1... c6 {[%clk 0:02:55.2]} 2. Nf3 {[%clk 0:02:59]} 2...
d5 {[%clk 0:02:56.1]} 3. d3 {[%clk 0:02:59.5]} 3... g6 {[%clk 0:02:50.6]} 4. e5
{[%clk 0:02:59.3]} 4... Bg7 {[%clk 0:02:50.5]} 5. d4 {[%clk 0:02:59.9]} 5... f6
{[%clk 0:02:51.2]} 6. exf6 {[%clk 0:02:51.1]} 6... Nxf6 {[%clk 0:02:52.1]} 7.
Be2 {[%clk 0:02:51.1]} 7... O-O {[%clk 0:02:52.6]} 8. O-O {[%clk 0:02:51.2]}
8... c5 {[%clk 0:02:53.3]} 9. dxc5 {[%clk 0:02:37.2]} 9... Ne4 {[%clk
0:02:53.2]} 10. c4 {[%clk 0:02:34.9]} 10... d4 {[%clk 0:02:53]} 11. Nbd2 {[%clk
0:02:01.7]} 11... Nxc5 {[%clk 0:02:53]} 12. Nb3 {[%clk 0:02:01.8]} 12... Nxb3
{[%clk 0:02:47.2]} 13. axb3 {[%clk 0:02:01.8]} 13... Nc6 {[%clk 0:02:46.6]} 14.
Re1 {[%clk 0:01:56.6]} 14... Bf5 {[%clk 0:02:41.9]} 15. Bd3 {[%clk 0:01:56.6]}
15... Qd7 {[%clk 0:02:38.5]} 16. Bg5 {[%clk 0:01:37]} 16... e5 {[%clk
0:02:32.7]} 17. Bh4 {[%clk 0:01:29.4]} 17... Rfe8 {[%clk 0:02:31.5]} 18. Be4
{[%clk 0:01:29.3]} 18... Kh8 {[%clk 0:02:02.8]} 19. Bg3 {[%clk 0:01:27.7]} 19...
Bxe4 {[%clk 0:01:39.6]} 20. Rxe4 {[%clk 0:01:28.6]} 20... Qf5 {[%clk 0:01:40.3]}
21. Qe2 {[%clk 0:01:28.1]} 21... Rad8 {[%clk 0:01:39.4]} 22. Re1 {[%clk
0:01:27.9]} 22... d3 {[%clk 0:01:38.4]} 23. Qd2 {[%clk 0:01:27.8]} 23... Rd7
{[%clk 0:01:32.2]} 24. b4 {[%clk 0:01:27.7]} 24... Qf8 {[%clk 0:01:10.1]} 25. b5
{[%clk 0:01:26.2]} 25... Nd4 {[%clk 0:01:10.6]} 26. Nxe5 {[%clk 0:01:20]} 26...
Nb3 {[%clk 0:00:14.2]} 27. Qd1 {[%clk 0:01:09.2]} 27... d2 {[%clk 0:00:11.7]}
28. Nxd7 {[%clk 0:01:05]} 28... dxe1=Q+ {[%clk 0:00:11.1]} 29. Qxe1 {[%clk
0:00:58]} 29... Rxe4 {[%clk 0:00:09.5]} 30. Qxe4 {[%clk 0:00:58.9]} 30... Qd8
{[%clk 0:00:09.8]} 31. Qxb7 {[%clk 0:00:49.5]} 31... Nc5 {[%clk 0:00:08.4]} 32.
Qb8 {[%clk 0:00:49.9]} 32... Qxb8 {[%clk 0:00:04]} 33. Nxb8 {[%clk 0:00:50.8]}
33... Bxb2 {[%clk 0:00:04.3]} 34. Nc6 {[%clk 0:00:51.2]} 34... a6 {[%clk
0:00:03.6]} 35. Bd6 {[%clk 0:00:49.1]} 35... axb5 {[%clk 0:00:01.6]} 36. Bxc5
{[%clk 0:00:49]} 36... bxc4 {[%clk 0:00:02.5]} 37. Bd4+ {[%clk 0:00:40.5]} 37...
Bxd4 {[%clk 0:00:02.6]} 38. Nxd4 {[%clk 0:00:41.4]} 38... Kg7 {[%clk 0:00:03.3]}
39. Kf1 {[%clk 0:00:42]} 39... Kf6 {[%clk 0:00:04.2]} 40. Ke2 {[%clk 0:00:42.6]}
40... Ke5 {[%clk 0:00:05]} 41. Ke3 {[%clk 0:00:43.2]} 41... c3 {[%clk
0:00:04.8]} 42. f4+ {[%clk 0:00:41.7]} 42... Kd5 {[%clk 0:00:04.7]} 43. Kd3
{[%clk 0:00:42.2]} 43... g5 {[%clk 0:00:04]} 44. f5 {[%clk 0:00:39.1]} 44... c2
{[%clk 0:00:03.5]} 45. Kxc2 {[%clk 0:00:38]} 45... Ke5 {[%clk 0:00:04.4]} 46.
Kd3 {[%clk 0:00:38]} 46... h5 {[%clk 0:00:04.3]} 47. Ke3 {[%clk 0:00:38.2]}
47... g4 {[%clk 0:00:03.8]} 48. g3 {[%clk 0:00:38.6]} 48... h4 {[%clk
0:00:04.2]} 49. gxh4 {[%clk 0:00:38.9]} 49... g3 {[%clk 0:00:04.9]} 50. hxg3
{[%clk 0:00:39.8]} 50... Kf6 {[%clk 0:00:05.4]} 51. Kf4 {[%clk 0:00:40.2]} 51...
Kf7 {[%clk 0:00:06.3]} 52. Kg5 {[%clk 0:00:40.4]} 52... Kg8 {[%clk 0:00:07.2]}
53. Kg6 {[%clk 0:00:40.7]} 53... Kh8 {[%clk 0:00:07.6]} 54. f6 {[%clk
0:00:41.2]} 54... Kg8 {[%clk 0:00:08.5]} 55. Ne6 {[%clk 0:00:41.5]} 55... Kh8
{[%clk 0:00:09.4]} 56. h5 {[%clk 0:00:42]} 56... Kg8 {[%clk 0:00:10.2]} 57. f7+
{[%clk 0:00:42.7]} 57... Kh8 {[%clk 0:00:10.6]} 58. f8=Q# {[%clk 0:00:43.6]} 1-0

[Event "Late-Titled-Tuesday-Blitz-June-04-2024"]
[Site "Chess.com"]
[Date "2024.06.04"]
[Round "3"]
[White "AlphaPerseii"]
[Black "ManMish2"]
[Result "1-0"]
[WhiteElo "2340"]
[BlackElo "2630"]
[TimeControl "180+1"]
[EndTime "14:27:51 PDT"]
[Termination "AlphaPerseii won by resignation"]

1. Nf3 {[%clk 0:02:59.8]} 1... d5 {[%clk 0:02:59.6]} 2. g3 {[%clk 0:02:57.9]}
2... Nf6 {[%clk 0:03:00]} 3. Bg2 {[%clk 0:02:58.2]} 3... g6 {[%clk 0:03:00.3]}
4. O-O {[%clk 0:02:55.5]} 4... Bg7 {[%clk 0:03:00.3]} 5. d4 {[%clk 0:02:55.4]}
5... O-O {[%clk 0:03:00.3]} 6. c4 {[%clk 0:02:55.4]} 6... c6 {[%clk 0:02:39]} 7.
cxd5 {[%clk 0:02:55.1]} 7... cxd5 {[%clk 0:02:35.1]} 8. Nc3 {[%clk 0:02:55.4]}
8... Nc6 {[%clk 0:02:34.8]} 9. Ne5 {[%clk 0:02:54.7]} 9... Bf5 {[%clk
0:02:31.2]} 10. Nxc6 {[%clk 0:02:54.2]} 10... bxc6 {[%clk 0:02:30.9]} 11. Qa4
{[%clk 0:02:45.9]} 11... Qb6 {[%clk 0:02:27.1]} 12. b3 {[%clk 0:02:41.4]} 12...
Nd7 {[%clk 0:02:16]} 13. Rd1 {[%clk 0:02:35.5]} 13... e5 {[%clk 0:02:04.2]} 14.
e3 {[%clk 0:02:10.1]} 14... Rfe8 {[%clk 0:01:53.3]} 15. Ba3 {[%clk 0:02:08.2]}
15... exd4 {[%clk 0:01:24.8]} 16. exd4 {[%clk 0:02:09.1]} 16... Bg4 {[%clk
0:01:24.4]} 17. Rd2 {[%clk 0:02:08.9]} 17... Bh6 {[%clk 0:01:20.8]} 18. f4
{[%clk 0:02:04.9]} 18... Bg7 {[%clk 0:01:18.6]} 19. h3 {[%clk 0:02:00.7]} 19...
Bf5 {[%clk 0:01:07.9]} 20. Rc1 {[%clk 0:01:59.9]} 20... Re3 {[%clk 0:00:56.4]}
21. Kh2 {[%clk 0:01:58.6]} 21... Rae8 {[%clk 0:00:51.1]} 22. Qb4 {[%clk
0:01:56.4]} 22... Qa6 {[%clk 0:00:28.8]} 23. Bf1 {[%clk 0:01:43.6]} 23... Qc8
{[%clk 0:00:28]} 24. Nxd5 {[%clk 0:01:39.4]} 24... R3e6 {[%clk 0:00:23]} 25. Qa5
{[%clk 0:01:30.6]} 25... Qb8 {[%clk 0:00:12]} 26. Nc7 {[%clk 0:01:26.8]} 26...
Re1 {[%clk 0:00:11.8]} 27. Nxe8 {[%clk 0:01:23.3]} 27... Qxe8 {[%clk 0:00:11.7]}
28. Bg2 {[%clk 0:01:07.6]} 28... Rxc1 {[%clk 0:00:11.2]} 29. Bxc1 {[%clk
0:01:08.5]} 29... Qe1 {[%clk 0:00:10.4]} 30. Qc3 {[%clk 0:01:02.4]} 30... Nf6
{[%clk 0:00:09.8]} 31. Rc2 {[%clk 0:00:50.2]} 31... Qe7 {[%clk 0:00:09.2]} 32.
Rf2 {[%clk 0:00:48.8]} 32... Ne4 {[%clk 0:00:06]} 33. Qe3 {[%clk 0:00:45.1]}
33... c5 {[%clk 0:00:03.9]} 34. dxc5 {[%clk 0:00:43.8]} 34... Qxc5 {[%clk
0:00:04.6]} 35. Qxc5 {[%clk 0:00:43.6]} 35... Nxc5 {[%clk 0:00:05.5]} 36. Be3
{[%clk 0:00:43]} 36... Nd3 {[%clk 0:00:05.8]} 37. Rd2 {[%clk 0:00:42.7]} 37...
Bc3 {[%clk 0:00:06.3]} 38. Rc2 {[%clk 0:00:40.8]} 38... Bf6 {[%clk 0:00:07]} 39.
Rc7 {[%clk 0:00:39.5]} 39... Ne1 {[%clk 0:00:06]} 40. Rxa7 {[%clk 0:00:38.9]}
40... Nxg2 {[%clk 0:00:05.3]} 41. Kxg2 {[%clk 0:00:39.8]} 41... Be4+ {[%clk
0:00:05.9]} 42. Kf2 {[%clk 0:00:40.3]} 42... Bc3 {[%clk 0:00:05.8]} 43. a3
{[%clk 0:00:39.8]} 43... Bb2 {[%clk 0:00:05.8]} 44. b4 {[%clk 0:00:40]} 44... h5
{[%clk 0:00:06.3]} 45. b5 {[%clk 0:00:40.2]} 45... h4 {[%clk 0:00:06.9]} 46.
gxh4 {[%clk 0:00:40.6]} 46... Bf6 {[%clk 0:00:06.7]} 47. b6 {[%clk 0:00:40.9]}
47... Bxh4+ {[%clk 0:00:07.3]} 48. Ke2 {[%clk 0:00:40.9]} 48... Be7 {[%clk
0:00:06.9]} 49. b7 {[%clk 0:00:41]} 49... Kg7 {[%clk 0:00:07]} 50. b8=Q {[%clk
0:00:41.3]} 1-0

[Event "Late-Titled-Tuesday-Blitz-June-04-2024"]
[Site "Chess.com"]
[Date "2024.06.04"]
[Round "3"]
[White "bascheyaro"]
[Black "FMOlexandrProhorov"]
[Result "1-0"]
[WhiteElo "2803"]
[BlackElo "2376"]
[TimeControl "180+1"]
[EndTime "14:27:52 PDT"]
[Termination "bascheyaro won on time"]

1. d4 {[%clk 0:02:55.2]} 1... g6 {[%clk 0:02:58.5]} 2. c4 {[%clk 0:02:55.3]}
2... Bg7 {[%clk 0:02:59.4]} 3. Nf3 {[%clk 0:02:55.8]} 3... c5 {[%clk 0:02:59.9]}
4. Nc3 {[%clk 0:02:54.7]} 4... cxd4 {[%clk 0:02:59.8]} 5. Nxd4 {[%clk
0:02:55.6]} 5... Nc6 {[%clk 0:03:00.4]} 6. e3 {[%clk 0:02:55.8]} 6... Nxd4
{[%clk 0:02:59.9]} 7. exd4 {[%clk 0:02:56.1]} 7... Nf6 {[%clk 0:03:00.8]} 8. Be2
{[%clk 0:02:55.8]} 8... O-O {[%clk 0:03:01.5]} 9. O-O {[%clk 0:02:54.9]} 9... d5
{[%clk 0:03:02.4]} 10. Be3 {[%clk 0:02:51.6]} 10... Be6 {[%clk 0:02:59.5]} 11.
c5 {[%clk 0:02:51.2]} 11... b6 {[%clk 0:02:59.5]} 12. b4 {[%clk 0:02:50.9]}
12... Ne4 {[%clk 0:02:51.8]} 13. Rc1 {[%clk 0:02:43.8]} 13... a5 {[%clk
0:02:30.4]} 14. a3 {[%clk 0:02:22.3]} 14... axb4 {[%clk 0:02:28.8]} 15. axb4
{[%clk 0:02:21.8]} 15... bxc5 {[%clk 0:02:24.7]} 16. bxc5 {[%clk 0:02:19.8]}
16... Nxc5 {[%clk 0:02:15.4]} 17. Nxd5 {[%clk 0:01:44]} 17... Bxd5 {[%clk
0:02:01.5]} 18. dxc5 {[%clk 0:01:42.2]} 18... Bc6 {[%clk 0:02:01.8]} 19. Qc2
{[%clk 0:01:33.6]} 19... Qc7 {[%clk 0:01:56.5]} 20. Rb1 {[%clk 0:01:23.5]} 20...
e6 {[%clk 0:01:47.9]} 21. Rb6 {[%clk 0:01:21.3]} 21... Rfc8 {[%clk 0:01:38.1]}
22. Rfb1 {[%clk 0:01:14]} 22... Ra1 {[%clk 0:01:29.7]} 23. Rxa1 {[%clk
0:01:01.5]} 23... Bxa1 {[%clk 0:01:30.6]} 24. Qa2 {[%clk 0:00:58.2]} 24... Be5
{[%clk 0:01:26.2]} 25. h3 {[%clk 0:00:56.9]} 25... Bh2+ {[%clk 0:01:15.9]} 26.
Kf1 {[%clk 0:00:57]} 26... Be5 {[%clk 0:01:15.4]} 27. Bf3 {[%clk 0:00:50.9]}
27... Ra8 {[%clk 0:01:09.4]} 28. Qc4 {[%clk 0:00:24.6]} 28... Ra1+ {[%clk
0:00:58.1]} 29. Ke2 {[%clk 0:00:24.9]} 29... Ba4 {[%clk 0:00:44.2]} 30. Be4
{[%clk 0:00:15.2]} 30... Bd1+ {[%clk 0:00:35.7]} 31. Kd2 {[%clk 0:00:15.7]}
31... Qd8+ {[%clk 0:00:31.7]} 32. Bd3 {[%clk 0:00:15.5]} 32... Ba4 {[%clk
0:00:22.2]} 33. c6 {[%clk 0:00:15.5]} 33... Bc7 {[%clk 0:00:16.4]} 34. Rb7
{[%clk 0:00:13.6]} 34... e5 {[%clk 0:00:11.6]} 35. Bb6 {[%clk 0:00:10.5]} 35...
Bxb6 {[%clk 0:00:07.1]} 36. Qxf7+ {[%clk 0:00:10]} 1-0

[Event "Late-Titled-Tuesday-Blitz-June-04-2024"]
[Site "Chess.com"]
[Date "2024.06.04"]
[Round "3"]
[White "HowTo2Draw"]
[Black "Bond_7_7_7"]
[Result "1/2-1/2"]
[WhiteElo "2588"]
[BlackElo "2427"]
[TimeControl "180+1"]
[EndTime "14:27:55 PDT"]
[Termination "Game drawn by repetition"]

1. e4 {[%clk 0:03:00.9]} 1... e5 {[%clk 0:02:59.2]} 2. Nf3 {[%clk 0:03:00.7]}
2... Nc6 {[%clk 0:02:59.3]} 3. d4 {[%clk 0:03:00.6]} 3... exd4 {[%clk
0:02:58.6]} 4. Nxd4 {[%clk 0:03:01]} 4... Qf6 {[%clk 0:02:58.9]} 5. Nb5 {[%clk
0:02:49.1]} 5... Bc5 {[%clk 0:02:19.8]} 6. Qf3 {[%clk 0:02:44.7]} 6... Qxf3
{[%clk 0:02:04.2]} 7. gxf3 {[%clk 0:02:45.6]} 7... Kd8 {[%clk 0:02:02.3]} 8. Be3
{[%clk 0:02:19.7]} 8... Bxe3 {[%clk 0:02:00.9]} 9. fxe3 {[%clk 0:02:18.3]} 9...
d6 {[%clk 0:02:01.4]} 10. c4 {[%clk 0:02:17.6]} 10... f5 {[%clk 0:01:50.3]} 11.
exf5 {[%clk 0:02:12.1]} 11... Bxf5 {[%clk 0:01:49.4]} 12. e4 {[%clk 0:02:09.3]}
12... Bg6 {[%clk 0:01:46.8]} 13. N1c3 {[%clk 0:02:08.7]} 13... a6 {[%clk
0:01:46.7]} 14. Na3 {[%clk 0:02:06.9]} 14... Nf6 {[%clk 0:01:43.1]} 15. Be2
{[%clk 0:01:59.3]} 15... Nd4 {[%clk 0:01:39.3]} 16. O-O-O {[%clk 0:01:55.4]}
16... Nxe2+ {[%clk 0:01:37.7]} 17. Nxe2 {[%clk 0:01:54.5]} 17... Bh5 {[%clk
0:01:38.3]} 18. Rd3 {[%clk 0:01:53.2]} 18... Nxe4 {[%clk 0:01:36]} 19. fxe4
{[%clk 0:01:38.7]} 19... Bxe2 {[%clk 0:01:35]} 20. Re3 {[%clk 0:01:33]} 20...
Bh5 {[%clk 0:01:33.9]} 21. e5 {[%clk 0:01:31.2]} 21... Re8 {[%clk 0:01:20.1]}
22. Rhe1 {[%clk 0:01:28.3]} 22... dxe5 {[%clk 0:01:15.9]} 23. Rxe5 {[%clk
0:01:27.2]} 23... Rxe5 {[%clk 0:01:16.5]} 24. Rxe5 {[%clk 0:01:26.4]} 24... Bg6
{[%clk 0:01:17]} 25. c5 {[%clk 0:01:12]} 25... Kd7 {[%clk 0:01:13.8]} 26. Nc4
{[%clk 0:01:10.1]} 26... Re8 {[%clk 0:01:01.3]} 27. Kd2 {[%clk 0:00:43.8]} 27...
Rxe5 {[%clk 0:00:57]} 28. Nxe5+ {[%clk 0:00:44.7]} 28... Ke6 {[%clk 0:00:56.8]}
29. c6 {[%clk 0:00:38.8]} 29... b6 {[%clk 0:00:52.7]} 30. Nxg6 {[%clk 0:00:26]}
30... hxg6 {[%clk 0:00:51.6]} 31. Ke3 {[%clk 0:00:25.7]} 31... g5 {[%clk
0:00:47.6]} 32. Ke4 {[%clk 0:00:24]} 32... g6 {[%clk 0:00:43.9]} 33. h3 {[%clk
0:00:20.2]} 33... Kd6 {[%clk 0:00:43.9]} 34. Kf3 {[%clk 0:00:18.9]} 34... Ke5
{[%clk 0:00:43.9]} 35. Kg4 {[%clk 0:00:19]} 35... Kf6 {[%clk 0:00:44.5]} 36. a3
{[%clk 0:00:16.3]} 36... b5 {[%clk 0:00:33.4]} 37. b4 {[%clk 0:00:16.2]} 37...
Kg7 {[%clk 0:00:33.2]} 38. Kxg5 {[%clk 0:00:15.8]} 38... Kf7 {[%clk 0:00:33.8]}
39. Kh6 {[%clk 0:00:11.2]} 39... Kf6 {[%clk 0:00:33.2]} 40. Kh7 {[%clk 0:00:09]}
40... Kg5 {[%clk 0:00:30.7]} 41. Kg7 {[%clk 0:00:08.4]} 41... Kh5 {[%clk
0:00:30.7]} 42. Kf6 {[%clk 0:00:07.6]} 42... g5 {[%clk 0:00:29.6]} 43. Kf5
{[%clk 0:00:06.3]} 43... Kh4 {[%clk 0:00:29.8]} 44. Kf6 {[%clk 0:00:05.7]} 44...
Kh5 {[%clk 0:00:25.7]} 45. Kf5 {[%clk 0:00:05.3]} 45... Kh6 {[%clk 0:00:24.2]}
46. Kf6 {[%clk 0:00:04.1]} 46... Kh5 {[%clk 0:00:24.8]} 1/2-1/2

[Event "Late-Titled-Tuesday-Blitz-June-04-2024"]
[Site "Chess.com"]
[Date "2024.06.04"]
[Round "3"]
[White "Quattroporte300"]
[Black "Zura_19"]
[Result "1-0"]
[WhiteElo "2456"]
[BlackElo "2611"]
[TimeControl "180+1"]
[EndTime "14:27:57 PDT"]
[Termination "Quattroporte300 won on time"]

1. e4 {[%clk 0:03:00.9]} 1... c6 {[%clk 0:02:59.1]} 2. d4 {[%clk 0:03:00.1]}
2... d5 {[%clk 0:02:59.6]} 3. exd5 {[%clk 0:03:00.4]} 3... cxd5 {[%clk
0:02:58.7]} 4. Bd3 {[%clk 0:03:00.7]} 4... Nc6 {[%clk 0:02:58.5]} 5. c3 {[%clk
0:03:00.8]} 5... Nf6 {[%clk 0:02:57.9]} 6. Bf4 {[%clk 0:03:00.8]} 6... g6 {[%clk
0:02:57.9]} 7. Nd2 {[%clk 0:03:00.3]} 7... Bf5 {[%clk 0:02:57.3]} 8. Bxf5 {[%clk
0:03:00]} 8... gxf5 {[%clk 0:02:58.2]} 9. Qf3 {[%clk 0:03:00]} 9... e6 {[%clk
0:02:56.3]} 10. h3 {[%clk 0:03:00.2]} 10... Rg8 {[%clk 0:02:53.4]} 11. Ne2
{[%clk 0:03:00.3]} 11... Bd6 {[%clk 0:02:52.8]} 12. O-O-O {[%clk 0:02:47.9]}
12... Rc8 {[%clk 0:02:31.4]} 13. Kb1 {[%clk 0:02:46.9]} 13... b5 {[%clk
0:02:31.2]} 14. Rhe1 {[%clk 0:02:35.2]} 14... b4 {[%clk 0:02:09.7]} 15. c4
{[%clk 0:01:47.9]} 15... Be7 {[%clk 0:01:46.8]} 16. c5 {[%clk 0:01:21.8]} 16...
Ne4 {[%clk 0:01:40.9]} 17. Nxe4 {[%clk 0:01:10.9]} 17... fxe4 {[%clk 0:01:32.4]}
18. Qh5 {[%clk 0:01:05.5]} 18... Rxg2 {[%clk 0:01:30.8]} 19. Bg3 {[%clk
0:00:54.1]} 19... e3 {[%clk 0:01:03.4]} 20. fxe3 {[%clk 0:00:44.9]} 20... Qa5
{[%clk 0:00:51.5]} 21. Qf3 {[%clk 0:00:41.9]} 21... Rxg3 {[%clk 0:00:27.5]} 22.
Nxg3 {[%clk 0:00:38.6]} 22... b3 {[%clk 0:00:22.3]} 23. a3 {[%clk 0:00:38.4]}
23... Qb5 {[%clk 0:00:20.3]} 24. e4 {[%clk 0:00:34.8]} 24... Qa4 {[%clk
0:00:14.7]} 25. exd5 {[%clk 0:00:28]} 25... Nxd4 {[%clk 0:00:14]} 26. Qd3 {[%clk
0:00:24.8]} 26... Bxc5 {[%clk 0:00:11.2]} 27. dxe6 {[%clk 0:00:23]} 27... fxe6
{[%clk 0:00:08.2]} 28. Qxh7 {[%clk 0:00:20]} 28... Qc4 {[%clk 0:00:07.9]} 29.
Qd3 {[%clk 0:00:15.2]} 29... Qd5 {[%clk 0:00:07.7]} 30. Ne2 {[%clk 0:00:13.7]}
30... Nxe2 {[%clk 0:00:02.9]} 31. Qxd5 {[%clk 0:00:13]} 31... exd5 {[%clk
0:00:03.3]} 32. Rxe2+ {[%clk 0:00:13.4]} 32... Kd7 {[%clk 0:00:03.3]} 33. Rxd5+
{[%clk 0:00:13.8]} 33... Kc6 {[%clk 0:00:03.9]} 34. Rd1 {[%clk 0:00:12.5]} 34...
Rh8 {[%clk 0:00:03.2]} 35. Rc1 {[%clk 0:00:11]} 35... Kb6 {[%clk 0:00:02.2]} 36.
Re6+ {[%clk 0:00:10.8]} 36... Kb5 {[%clk 0:00:02.4]} 37. Re5 {[%clk 0:00:11.4]}
1-0

[Event "Late-Titled-Tuesday-Blitz-June-04-2024"]
[Site "Chess.com"]
[Date "2024.06.04"]
[Round "3"]
[White "Mikhal867"]
[Black "ACH19"]
[Result "0-1"]
[WhiteElo "2522"]
[BlackElo "2259"]
[TimeControl "180+1"]
[EndTime "14:27:58 PDT"]
[Termination "ACH19 won by checkmate"]

1. d4 {[%clk 0:02:59.1]} 1... Nf6 {[%clk 0:02:58.5]} 2. c4 {[%clk 0:02:58.4]}
2... c5 {[%clk 0:02:59]} 3. d5 {[%clk 0:02:57]} 3... b5 {[%clk 0:02:59.6]} 4. f3
{[%clk 0:02:54.5]} 4... bxc4 {[%clk 0:02:53.7]} 5. e4 {[%clk 0:02:54.4]} 5... d6
{[%clk 0:02:54.2]} 6. Bxc4 {[%clk 0:02:47.8]} 6... g6 {[%clk 0:02:54.6]} 7. b3
{[%clk 0:02:46.7]} 7... Bg7 {[%clk 0:02:55.1]} 8. Bb2 {[%clk 0:02:46.8]} 8...
O-O {[%clk 0:02:55.7]} 9. Ne2 {[%clk 0:02:45.6]} 9... Nbd7 {[%clk 0:02:55.8]}
10. O-O {[%clk 0:02:41.3]} 10... Nb6 {[%clk 0:02:56.2]} 11. Bb5 {[%clk
0:02:35.9]} 11... a6 {[%clk 0:02:44.1]} 12. Bc6 {[%clk 0:02:35.4]} 12... Rb8
{[%clk 0:02:43.7]} 13. Na3 {[%clk 0:02:34.8]} 13... Nbd7 {[%clk 0:02:37.5]} 14.
Nc4 {[%clk 0:02:28.5]} 14... Ne8 {[%clk 0:02:35.9]} 15. Bxg7 {[%clk 0:02:26.3]}
15... Kxg7 {[%clk 0:02:36.2]} 16. f4 {[%clk 0:02:24.1]} 16... Nb6 {[%clk
0:02:05.3]} 17. Na5 {[%clk 0:02:16.4]} 17... Nxd5 {[%clk 0:01:45.6]} 18. Bxe8
{[%clk 0:02:15.5]} 18... Qxa5 {[%clk 0:01:37.8]} 19. Qxd5 {[%clk 0:01:47.1]}
19... Rxe8 {[%clk 0:01:37.3]} 20. f5 {[%clk 0:01:44.4]} 20... Bb7 {[%clk
0:01:19.3]} 21. Qd3 {[%clk 0:01:43.4]} 21... Qb4 {[%clk 0:01:11.9]} 22. Rf4
{[%clk 0:01:29.1]} 22... g5 {[%clk 0:01:01]} 23. Rg4 {[%clk 0:01:28.5]} 23... f6
{[%clk 0:01:00.1]} 24. Nf4 {[%clk 0:01:26.4]} 24... Qd4+ {[%clk 0:00:39.6]} 25.
Qxd4 {[%clk 0:01:25.6]} 25... cxd4 {[%clk 0:00:40.5]} 26. Ne6+ {[%clk
0:01:25.4]} 26... Kf7 {[%clk 0:00:40.4]} 27. Re1 {[%clk 0:01:12.5]} 27... d3
{[%clk 0:00:39.2]} 28. h4 {[%clk 0:01:01.6]} 28... h5 {[%clk 0:00:37.7]} 29. Rg3
{[%clk 0:01:00.5]} 29... d2 {[%clk 0:00:35]} 30. Rd1 {[%clk 0:01:00.5]} 30...
Bxe4 {[%clk 0:00:28.4]} 31. hxg5 {[%clk 0:00:59.3]} 31... Bxf5 {[%clk
0:00:27.1]} 32. Nd4 {[%clk 0:00:56.6]} 32... Bg4 {[%clk 0:00:27.3]} 33. Rxd2
{[%clk 0:00:41.6]} 33... fxg5 {[%clk 0:00:26.5]} 34. Rf2+ {[%clk 0:00:32]} 34...
Kg6 {[%clk 0:00:25.6]} 35. Nc6 {[%clk 0:00:21.6]} 35... Rbc8 {[%clk 0:00:20.5]}
36. Nb4 {[%clk 0:00:21]} 36... Rc1+ {[%clk 0:00:20.3]} 37. Kh2 {[%clk
0:00:19.8]} 37... Ra1 {[%clk 0:00:15.3]} 38. Nd5 {[%clk 0:00:19.2]} 38... e6
{[%clk 0:00:13]} 39. Nc7 {[%clk 0:00:17.6]} 39... Rc8 {[%clk 0:00:12]} 40. Nxa6
{[%clk 0:00:17.5]} 40... Rcc1 {[%clk 0:00:12.1]} 41. Rd3 {[%clk 0:00:12.1]}
41... h4 {[%clk 0:00:12.4]} 42. g3 {[%clk 0:00:04.7]} 42... Rh1+ {[%clk
0:00:12.2]} 43. Kg2 {[%clk 0:00:05]} 43... Rag1# {[%clk 0:00:12.8]} 0-1